bitfinex/quotes_SOLUSD_20240813
["timestamp","ask_amount","ask_price","bid_price","bid_amount"]
[1723549073393,39.6689,145.16,145.15,245.0]
[1723549076225,20.0,145.16,145.15,245.25098]
[1723549076440,12.78,145.18,145.15,245.50196]
[1723549076617,26.8884,145.17,145.16,45.12549]
[1723549076807,26.8884,145.17,145.16,45.0]
[1723549077818,26.8884,145.17,145.15,200.0]
[1723549077819,6.8889,145.16,145.15,200.0]
[1723549078020,40.48852878,145.16,145.15,200.0]
[1723549078627,39.6689,145.16,145.15,200.0]
[1723549081019,39.6689,145.16,145.15,90.55]
[1723549081235,54.8337,145.16,145.15,63.3621]
[1723549081823,39.6689,145.16,145.15,63.3621]
[1723549084317,26.8889,145.16,145.15,108.3621]
[1723549085237,26.8889,145.16,145.15,63.3621]
[1723549085944,20.0,145.16,145.15,108.3621]
[1723549086152,6.8886,145.17,145.15,108.3621]
[1723549086434,6.8886,145.17,145.16,45.12549]
[1723549086731,26.8886,145.17,145.16,45.0]
[1723549089233,20.0,145.17,145.16,45.12549]
[1723549089440,12.78,145.2,145.17,0.12549]
[1723549089742,20.0,145.19,145.17,0.50196]
[1723549089941,12.78,145.18,145.16,45.0]
[1723549090315,6.8884,145.17,145.16,45.12549]
[1723549094634,6.888,145.18,145.16,45.25098]
[1723549095018,20.0,145.19,145.17,0.12549]
[1723549095247,6.8865,145.21,145.17,22.86396]
[1723549095437,6.8865,145.21,145.18,45.0]
[1723549095621,12.78,145.22,145.18,45.0]
[1723549095622,6.8871,145.2,145.18,45.0]
[1723549096547,6.8875,145.19,145.18,45.0]
[1723549096920,12.78,145.2,145.15,69.75939]
[1723549096921,6.8889,145.16,145.15,69.75939]
[1723549097423,6.8889,145.16,145.15,69.6339]
[1723549098140,19.6689,145.16,145.15,63.3621]
[1723549098646,6.8889,145.16,145.15,63.3621]
[1723549099223,6.8889,145.16,145.15,108.3621]
[1723549099554,19.6689,145.16,145.15,108.3621]
[1723549099757,19.6689,145.16,145.15,63.3621]
[1723549100254,39.6689,145.16,145.15,63.3621]
[1723549100627,39.6689,145.16,145.15,108.3621]
[1723549101331,39.6689,145.16,145.15,63.3621]
[1723549103749,39.6689,145.16,145.15,108.3621]
[1723549105234,39.6689,145.16,145.15,63.3621]
[1723549109842,26.8889,145.16,145.15,108.3621]
[1723549113051,39.6689,145.16,145.15,108.3621]
[1723549115076,20.0,145.16,145.15,108.61308]
[1723549115277,6.8889,145.16,145.15,108.86406]
[1723549117780,6.8889,145.16,145.15,108.48759]
[1723549119485,6.8889,145.16,145.15,108.3621]
[1723549120170,6.8887,145.17,145.16,0.12549]
[1723549120375,26.8887,145.17,145.16,45.12549]
[1723549125613,6.8881,145.18,145.16,45.50196]
[1723549126104,6.8884,145.17,145.16,45.50196]
[1723549128701,17.2149,145.23,145.16,62.72416]
[1723549129002,6.8878,145.19,145.16,45.50196]
[1723549129179,6.888,145.18,145.16,45.50196]
[1723549130279,6.8877,145.19,145.17,0.37647]
[1723549130498,6.8877,145.19,145.18,0.12549]
[1723549130680,26.8877,145.19,145.18,0.12549]
[1723549131485,6.888,145.18,145.17,0.25098]
[1723549131685,6.888,145.18,145.17,0.12549]
[1723549134103,26.8876,145.19,145.17,0.12549]
[1723549134279,26.8876,145.19,145.17,0.50196]
[1723549134486,6.8871,145.2,145.17,0.50196]
[1723549134783,6.8876,145.19,145.17,0.50196]
[1723549135388,6.888,145.18,145.17,0.50196]
[1723549135687,6.888,145.18,145.17,0.25098]
[1723549136005,6.8884,145.17,145.16,45.12549]
[1723549136183,6.8884,145.17,145.16,45.37647]
[1723549136378,6.8884,145.17,145.16,45.50196]
[1723549136706,6.8884,145.17,145.16,45.12549]
[1723549137004,6.8884,145.17,145.16,45.0]
[1723549137398,12.78,145.2,145.16,45.12549]
[1723549137594,26.8879,145.19,145.16,45.12549]
[1723549137800,26.8879,145.19,145.17,0.37647]
[1723549140510,26.8879,145.19,145.17,1.75399792]
[1723549141603,6.888,145.18,145.17,1.75399792]
[1723549141787,6.888,145.18,145.17,0.50196]
[1723549142710,6.888,145.18,145.17,1.50724719]
[1723549143407,20.0,145.19,145.17,1.50724719]
[1723549143710,6.888,145.18,145.17,1.50724719]
[1723549144086,6.888,145.18,145.17,0.50196]
[1723549144289,6.888,145.18,145.17,0.12549]
[1723549144604,6.8884,145.17,145.16,45.12549]
[1723549144910,6.8884,145.17,145.16,45.50196]
[1723549145206,6.8882,145.18,145.17,0.12549]
[1723549146717,6.8876,145.19,145.17,0.25098]
[1723549146887,6.8876,145.19,145.17,0.37647]
[1723549147514,6.888,145.18,145.17,0.37647]
[1723549147716,20.0,145.21,145.17,0.50196]
[1723549147917,20.0,145.21,145.18,0.12549]
[1723549148219,6.8877,145.19,145.18,0.50196]
[1723549149291,6.8877,145.19,145.18,0.37647]
[1723549149498,6.8883,145.18,145.17,0.12549]
[1723549149720,6.8883,145.18,145.17,0.50196]
[1723549150221,20.0,145.21,145.17,0.50196]
[1723549150522,12.78,145.24,145.17,0.50196]
[1723549150895,12.78,145.22,145.17,0.50196]
[1723549151218,6.8875,145.19,145.17,0.50196]
[1723549152027,6.8872,145.2,145.17,0.50196]
[1723549152522,6.8876,145.19,145.17,0.50196]
[1723549153031,6.8872,145.2,145.17,0.50196]
[1723549154803,6.8866,145.21,145.17,7.39036]
[1723549155004,6.8866,145.21,145.19,0.12549]
[1723549155205,6.8866,145.21,145.19,0.50196]
[1723549155614,6.887,145.2,145.19,0.50196]
[1723549156329,6.8879,145.19,145.15,69.8632]
[1723549156540,6.8876,145.19,145.15,69.8632]
[1723549156711,6.8876,145.19,145.15,76.7523]
[1723549156920,6.8876,145.19,145.16,6.8889]
[1723549157730,6.8876,145.19,145.17,0.25098]
[1723549157907,6.8876,145.19,145.17,0.37647]
[1723549158225,12.78,145.2,145.17,0.37647]
[1723549158226,6.888,145.18,145.17,0.37647]
[1723549158533,6.888,145.18,145.17,0.50196]
[1723549159235,6.8876,145.19,145.17,0.50196]
[1723549159604,6.888,145.18,145.17,0.50196]
[1723549160306,6.888,145.18,145.17,0.12549]
[1723549160934,6.8877,145.19,145.17,0.12549]
[1723549161632,6.8877,145.19,145.16,45.0]
[1723549161633,12.78,145.2,145.16,45.0]
[1723549161800,20.0,145.19,145.16,45.12549]
[1723549161998,6.8884,145.18,145.16,45.0]
[1723549162302,6.8884,145.17,145.16,45.12549]
[1723549162605,6.8881,145.18,145.17,0.12549]
[1723549162919,6.8881,145.18,145.17,0.25098]
[1723549163101,6.8881,145.18,145.17,0.12549]
[1723549163917,6.8884,145.17,145.16,45.25098]
[1723549164113,6.8884,145.17,145.16,45.50196]
[1723549164719,20.0,145.19,145.16,45.12549]
[1723549165530,6.8882,145.18,145.16,45.12549]
[1723549166519,6.8884,145.17,145.16,45.12549]
[1723549167636,6.8889,145.16,145.15,63.3621]
[1723549168120,19.6689,145.16,145.15,63.3621]
[1723549168752,6.8889,145.16,145.15,63.3621]
[1723549169107,6.8886,145.17,145.16,0.12549]
[1723549169329,20.0,145.17,145.16,45.25098]
[1723549169536,20.0,145.17,145.16,45.50196]
[1723549169726,20.0,145.18,145.16,45.50196]
[1723549169927,6.8874,145.2,145.16,52.39076]
[1723549170114,29.9963,145.22,145.17,0.12549]
[1723549170313,6.8875,145.19,145.17,0.12549]
[1723549170741,6.888,145.18,145.17,0.12549]
[1723549171546,6.888,145.18,145.16,45.37647]
[1723549172250,6.8884,145.17,145.16,45.37647]
[1723549172449,6.8884,145.17,145.16,45.50196]
[1723549173947,6.8889,145.16,145.15,63.3621]
[1723549174657,19.6689,145.16,145.15,63.3621]
[1723549176767,39.6689,145.16,145.15,63.3621]
[1723549178772,39.6689,145.16,145.15,108.3621]
[1723549180253,20.0,145.16,145.15,108.61308]
[1723549180449,19.6681,145.18,145.16,0.12549]
[1723549180647,19.6681,145.18,145.16,45.12549]
[1723549180648,20.0,145.17,145.16,45.12549]
[1723549181444,20.0,145.17,145.16,45.25098]
[1723549181645,12.78,145.2,145.16,45.50196]
[1723549181854,6.8875,145.19,145.18,0.12549]
[1723549182060,6.888,145.18,145.17,0.37647]
[1723549182262,6.888,145.18,145.17,0.12549]
[1723549183381,26.888,145.18,145.17,0.12549]
[1723549184866,20.0,145.18,145.17,0.50196]
[1723549185062,6.8877,145.19,145.18,0.12549]
[1723549185270,26.8877,145.19,145.18,0.50196]
[1723549186679,6.8881,145.18,145.17,0.12549]
[1723549186878,6.8881,145.18,145.17,0.50196]
[1723549187784,26.8877,145.19,145.17,0.50196]
[1723549188092,6.888,145.18,145.17,0.50196]
[1723549188986,6.8889,145.16,145.15,63.3621]
[1723549190387,6.8889,145.16,145.15,108.61308]
[1723549191081,6.8889,145.16,145.15,108.86406]
[1723549191285,6.8886,145.17,145.16,0.12549]
[1723549191452,6.8886,145.17,145.16,45.12549]
[1723549194682,20.0,145.19,145.16,45.12549]
[1723549194853,6.888,145.18,145.16,45.12549]
[1723549196460,32.78,145.2,145.16,52.01429]
[1723549196666,6.8875,145.19,145.16,45.12549]
[1723549198991,6.8881,145.18,145.16,45.12549]
[1723549199787,6.8881,145.18,145.17,0.50196]
[1723549200294,6.8881,145.18,145.17,0.37647]
[1723549200483,6.8881,145.18,145.17,0.12549]
[1723549202385,6.8881,145.18,145.17,0.25098]
[1723549202588,6.8881,145.18,145.17,0.50196]
[1723549202905,6.8881,145.18,145.17,0.12549]
[1723549203091,6.8884,145.17,145.16,45.12549]
[1723549203288,6.8884,145.17,145.16,45.50196]
[1723549205096,6.8884,145.17,145.16,45.12549]
[1723549205277,6.8889,145.16,145.15,63.3621]
[1723549206764,26.8889,145.16,145.15,63.3621]
[1723549212387,20.0,145.16,145.15,63.3621]
[1723549218907,20.81962878,145.16,145.15,63.3621]
[1723549219481,20.0,145.16,145.15,63.3621]
[1723549220397,20.0,145.16,145.09,16.2187]
[1723549220606,12.78,145.13,145.09,16.2187]
[1723549222083,12.78,145.13,145.08,0.12549]
[1723549222278,12.78,145.11,145.08,45.0]
[1723549222478,0.81962878,145.1,145.07,6.095]
[1723549222745,0.81962878,145.1,145.03,6.903]
[1723549222746,12.78,145.09,145.02,6.0069]
[1723549222887,12.78,145.07,145.02,6.0069]
[1723549223389,12.78,145.05,144.97,16.98302222]
[1723549223889,12.78,145.05,144.97,23.88602222]
[1723549224198,12.78,145.05,144.97,13.533]
[1723549226214,12.78,145.05,144.98,45.50196]
[1723549226608,12.78,145.07,144.98,58.28196]
[1723549226840,20.0,145.06,144.98,58.28196]
[1723549229130,30.24692878,145.05,144.97,6.63]
[1723549229332,20.0,145.04,144.97,6.63]
[1723549230033,20.0,145.05,144.97,6.63]
[1723549230428,20.0,145.05,144.98,45.50196]
[1723549231254,12.78,145.08,144.98,45.50196]
[1723549231437,12.78,145.08,145.0,0.12549]
[1723549231634,12.78,145.08,145.0,45.50196]
[1723549232437,16.6473,145.09,145.0,45.50196]
[1723549232438,29.4273,145.09,145.0,45.50196]
[1723549232642,20.0,145.08,145.0,45.50196]
[1723549233045,29.4273,145.09,145.0,45.50196]
[1723549233249,12.78,145.09,145.02,22.06249]
[1723549233432,12.78,145.11,145.04,0.12549]
[1723549233947,12.78,145.09,145.04,0.12549]
[1723549234252,20.0,145.08,145.04,0.12549]
[1723549241153,20.0,145.1,145.04,0.12549]
[1723549242661,20.0,145.1,145.04,17.36189]
[1723549242958,6.8925,145.09,145.06,0.12549]
[1723549243533,6.8927,145.08,145.06,0.12549]
[1723549245655,6.8932,145.07,145.06,0.12549]
[1723549245855,6.8943,145.05,145.02,21.937]
[1723549246664,51.12,145.11,145.02,21.937]
[1723549246665,34.4396,145.19,145.04,19.3916]
[1723549246951,12.78,145.17,145.09,24.1224]
[1723549247172,34.4396,145.19,145.08,15.4053]
[1723549247173,12.78,145.15,145.08,22.298]
[1723549247540,12.78,145.15,145.1,0.12549]
[1723549247760,6.891,145.12,145.1,0.12549]
[1723549248341,6.8905,145.13,145.1,0.12549]
[1723549249270,6.8899,145.14,145.1,7.01699]
[1723549249561,19.6696,145.15,145.12,0.12549]
[1723549250040,6.8896,145.15,145.12,0.12549]
[1723549251261,6.8896,145.15,145.12,1.14930856]
[1723549252948,6.889,145.16,145.12,25.26690856]
[1723549253166,6.889,145.16,145.13,45.0]
[1723549253347,12.78,145.17,145.14,1.27486618]
[1723549253348,6.8885,145.17,145.14,1.27486618]
[1723549254571,20.0,145.29,145.14,1.27486618]
[1723549254572,6.8853,145.24,145.2,6.887]
[1723549254783,6.8856,145.23,145.21,45.0]
[1723549254940,12.78,145.26,145.21,45.0]
[1723549255140,6.8849,145.25,145.21,45.0]
[1723549255360,12.78,145.26,145.21,45.0]
[1723549255567,6.8849,145.25,145.21,45.0]
[1723549255740,6.8852,145.24,145.21,45.0]
[1723549256864,6.8847,145.25,145.21,51.8865]
[1723549258277,32.78,145.24,145.15,22.1795]
[1723549258457,12.78,145.24,145.19,17.2185]
[1723549258776,26.8857,145.23,145.19,24.1056]
[1723549259559,26.8857,145.23,145.19,17.2185]
[1723549259865,20.0,145.23,145.2,0.12549]
[1723549260074,26.8856,145.23,145.2,0.12549]
[1723549260308,26.8856,145.23,145.19,24.1058]
[1723549260975,26.8856,145.23,145.2,45.0]
[1723549266907,6.8865,145.21,145.2,45.0]
[1723549267081,6.8865,145.21,145.18,0.37647]
[1723549267280,6.8865,145.21,145.18,45.37647]
[1723549267501,6.8865,145.21,145.17,6.888]
[1723549268003,6.8863,145.22,145.18,6.8879]
[1723549268581,26.8859,145.23,145.19,6.8874]
[1723549269008,26.8859,145.23,145.2,45.0]
[1723549269307,6.8861,145.22,145.2,45.0]
[1723549269513,6.8861,145.22,145.19,45.0]
[1723549271612,6.8869,145.21,145.19,45.0]
[1723549271799,6.887,145.2,145.19,45.0]
[1723549272108,6.8874,145.2,145.15,17.2224]
[1723549272319,29.9956,145.22,145.15,17.2224]
[1723549272488,6.8883,145.18,145.14,6.8898]
[1723549273212,29.9956,145.22,145.15,0.12549]
[1723549273415,20.0,145.21,145.15,45.25098]
[1723549274416,6.8871,145.2,145.16,6.8886]
[1723549277923,20.0,145.21,145.15,45.0]
[1723549277924,6.8881,145.18,145.15,45.0]
[1723549278122,0.81962878,145.17,145.14,17.224]
[1723549278322,6.8885,145.17,145.14,17.224]
[1723549279021,6.8881,145.18,145.14,24.1138]
[1723549279226,29.0449,145.2,145.09,47.2391]
[1723549279529,6.8881,145.18,145.14,6.8898]
[1723549280013,6.8876,145.19,145.14,0.12549]
[1723549280202,26.8867,145.21,145.17,6.8884]
[1723549280406,20.0,145.21,145.17,17.2204]
[1723549280599,20.0,145.21,145.18,51.8878]
[1723549280999,26.8866,145.21,145.18,45.0]
[1723549282229,20.0,145.21,145.18,51.8876]
[1723549282531,20.0,145.21,145.19,6.8872]
[1723549282691,20.0,145.22,145.19,6.8872]
[1723549282894,20.0,145.22,145.18,45.0]
[1723549283089,20.0,145.23,145.18,45.0]
[1723549283318,6.8878,145.19,145.15,7.01459]
[1723549283499,6.8878,145.19,145.16,45.0]
[1723549283699,6.8878,145.19,145.16,51.8889]
[1723549283908,29.9953,145.22,145.16,51.8889]
[1723549283909,15.6007,145.24,145.18,0.12549]
[1723549284102,15.6007,145.24,145.18,17.34519]
[1723549284410,12.78,145.27,145.19,45.37647]
[1723549285319,12.78,145.27,145.21,0.12549]
[1723549285522,6.885,145.25,145.21,45.12549]
[1723549285723,6.8851,145.24,145.21,45.12549]
[1723549285908,12.78,145.27,145.21,45.12549]
[1723549286228,6.8854,145.24,145.21,45.0]
[1723549287338,6.8848,145.25,145.21,45.0]
[1723549288003,6.8857,145.23,145.21,45.0]
[1723549288197,6.8857,145.23,145.2,45.12549]
[1723549289006,6.8857,145.23,145.2,45.0]
[1723549289607,6.8853,145.24,145.2,45.0]
[1723549290222,6.8853,145.24,145.2,51.887]
[1723549291108,12.78,145.25,145.2,45.0]
[1723549291417,6.8862,145.22,145.2,45.0]
[1723549291616,6.8862,145.22,145.18,0.12549]
[1723549291827,6.8858,145.23,145.18,7.01309]
[1723549292043,6.8858,145.23,145.19,6.8875]
[1723549293305,6.8851,145.24,145.2,7.01219]
[1723549293506,6.8851,145.24,145.21,45.0]
[1723549294133,19.6648,145.25,145.21,51.8865]
[1723549294343,20.0,145.24,145.21,51.8865]
[1723549294538,26.8853,145.24,145.21,45.0]
[1723549295651,6.8856,145.23,145.21,45.0]
[1723549297951,26.8854,145.24,145.21,45.0]
[1723549298748,26.8855,145.24,145.21,45.0]
[1723549300234,6.8855,145.24,145.21,45.0]
[1723549301136,6.8855,145.24,145.21,51.8865]
[1723549301556,6.8855,145.24,145.21,45.0]
[1723549301959,29.9895,145.27,145.21,51.8865]
[1723549302132,20.0,145.26,145.22,0.50196]
[1723549303352,15.8171,145.28,145.22,0.50196]
[1723549303353,17.2067,145.3,145.23,6.8856]
[1723549303539,17.2067,145.3,145.24,45.0]
[1723549303738,6.884,145.27,145.24,45.0]
[1723549304243,6.8842,145.26,145.24,45.0]
[1723549304442,6.8842,145.26,145.23,45.0]
[1723549304959,6.8842,145.26,145.23,51.8856]
[1723549305548,6.8842,145.26,145.23,45.0]
[1723549307541,6.8839,145.27,145.23,51.8856]
[1723549308659,6.8854,145.24,145.21,16.2158]
[1723549308860,6.8856,145.23,145.2,6.4821]
[1723549309062,0.81962878,145.26,145.2,6.4821]
[1723549309063,6.8853,145.24,145.2,13.3691]
[1723549309574,17.2054,145.31,145.2,19.2621]
[1723549309752,32.78,145.3,145.2,19.2621]
[1723549309952,6.8842,145.26,145.22,6.8859]
[1723549310167,6.8839,145.27,145.23,52.26177]
[1723549310343,6.8834,145.28,145.24,6.8849]
[1723549310544,6.8834,145.28,145.25,45.0]
[1723549310737,20.0,145.3,145.25,24.0954]
[1723549310967,6.8837,145.27,145.26,45.0]
[1723549311147,6.8837,145.27,145.24,0.12549]
[1723549311337,12.78,145.3,145.24,0.12549]
[1723549311543,6.8842,145.26,145.23,45.37647]
[1723549312168,6.8838,145.27,145.23,45.37647]
[1723549312545,6.8838,145.27,145.23,52.26197]
[1723549313259,6.8834,145.28,145.23,52.26197]
[1723549313455,6.8834,145.28,145.24,6.885]
[1723549313648,6.8834,145.28,145.25,45.0]
[1723549315869,6.8834,145.28,145.24,45.0]
[1723549317256,6.8834,145.28,145.24,51.8849]
[1723549317770,12.78,145.28,145.2,23.6988]
[1723549317976,12.78,145.26,145.2,6.4821]
[1723549318173,6.8847,145.25,145.21,6.8862]
[1723549318874,6.8843,145.26,145.22,6.886]
[1723549319171,6.8843,145.26,145.22,0.12549]
[1723549319375,6.8843,145.26,145.22,45.12549]
[1723549319683,6.8847,145.25,145.22,45.12549]
[1723549320247,6.8843,145.26,145.22,52.01149]
[1723549320447,6.8852,145.24,145.22,45.0]
[1723549320645,6.8848,145.25,145.22,45.0]
[1723549320873,6.8852,145.24,145.22,45.0]
[1723549321451,29.9887,145.28,145.23,0.12549]
[1723549321659,6.885,145.25,145.22,45.0]
[1723549321966,17.2053,145.31,145.23,32.81439]
[1723549322163,6.883,145.29,145.25,7.01009]
[1723549322473,6.883,145.29,145.26,45.0]
[1723549322872,29.2587766,145.32,145.26,45.0]
[1723549323385,6.8823,145.3,145.26,51.8838]
[1723549324151,6.8823,145.3,145.27,6.8837]
[1723549324355,6.8823,145.3,145.28,45.0]
[1723549325277,6.8823,145.3,145.27,45.12549]
[1723549325467,7.70162878,145.31,145.27,7.00909]
[1723549325659,20.0,145.3,145.28,45.0]
[1723549326884,26.8823,145.3,145.28,45.0]
[1723549327378,26.8823,145.3,145.27,45.12549]
[1723549327574,20.0,145.3,145.27,62.33459]
[1723549327891,6.8821,145.31,145.27,69.21819]
[1723549328075,20.0,145.3,145.27,69.21819]
[1723549328596,26.8823,145.3,145.27,62.33459]
[1723549333179,26.8823,145.3,145.27,45.12549]
[1723549335696,1.64300538,145.32,145.27,45.12549]
[1723549336288,6.8821,145.31,145.27,52.00899]
[1723549336507,20.0,145.3,145.27,52.00899]
[1723549336905,6.8821,145.31,145.29,0.12549]
[1723549337811,7.7048766,145.32,145.29,0.12549]
[1723549338019,7.7048766,145.32,145.29,45.12549]
[1723549338189,6.8818,145.31,145.29,45.12549]
[1723549338590,7.7048766,145.32,145.29,45.12549]
[1723549340318,0.8233766,145.32,145.29,45.12549]
[1723549340507,7.7048766,145.32,145.29,45.12549]
[1723549340813,6.8818,145.31,145.29,45.12549]
[1723549341019,6.8818,145.31,145.29,0.12549]
[1723549341813,7.7048766,145.32,145.29,0.12549]
[1723549342915,7.7048766,145.32,145.29,7.00819]
[1723549343214,0.8233766,145.32,145.3,45.0]
[1723549343407,7.7047766,145.32,145.3,45.0]
[1723549343598,7.7047766,145.32,145.29,45.12549]
[1723549349323,0.8233766,145.32,145.27,16.517]
[1723549349507,20.8233766,145.32,145.26,6.884]
[1723549349899,6.8825,145.3,145.26,6.884]
[1723549350828,6.8825,145.3,145.27,45.0]
[1723549351329,6.8823,145.3,145.23,28.1054]
[1723549351505,6.8819,145.31,145.27,6.8834]
[1723549351694,20.8233766,145.32,145.26,17.2104]
[1723549351894,7.7048766,145.32,145.29,6.8827]
[1723549352108,8.52450538,145.32,145.28,24.091]
[1723549352732,8.52450538,145.32,145.29,45.0]
[1723549354825,6.8823,145.3,145.29,45.0]
[1723549355039,6.8823,145.3,145.27,0.12549]
[1723549355201,6.8823,145.3,145.27,45.12549]
[1723549357244,6.8819,145.31,145.27,52.00899]
[1723549359998,0.8233766,145.32,145.27,45.12549]
[1723549360205,6.8831,145.29,145.27,45.0]
[1723549360525,6.8829,145.29,145.25,24.0954]
[1723549363613,12.78,145.31,145.25,17.2108]
[1723549363614,6.8834,145.28,145.25,17.2108]
[1723549363929,6.8829,145.29,145.25,24.0954]
[1723549368612,6.8823,145.3,145.26,7.00959]
[1723549368931,6.8823,145.3,145.27,45.0]
[1723549369119,6.8823,145.3,145.27,51.8836]
[1723549369329,6.8819,145.31,145.27,51.8836]
[1723549369510,6.8828,145.29,145.27,45.0]
[1723549369831,6.8828,145.29,145.26,45.12549]
[1723549370034,6.8824,145.3,145.26,52.00959]
[1723549375134,6.8828,145.29,145.26,45.12549]
[1723549375506,6.8833,145.28,145.24,6.885]
[1723549376610,6.8833,145.28,145.25,6.8846]
[1723549377035,6.8829,145.29,145.25,6.8846]
[1723549377473,0.8233766,145.32,145.26,17.33589]
[1723549377635,6.8818,145.31,145.27,52.13448]
[1723549378362,6.8818,145.31,145.28,0.12549]
[1723549378538,6.8824,145.3,145.27,45.0]
[1723549378864,6.882,145.31,145.27,51.8837]
[1723549380332,1.64300538,145.32,145.28,17.45858]
[1723549380537,1.64300538,145.32,145.29,45.0]
[1723549380766,7.7048766,145.32,145.29,45.0]
[1723549381468,0.8233766,145.32,145.29,51.8826]
[1723549382040,0.8233766,145.32,145.3,17.2057]
[1723549382347,0.8233766,145.32,145.3,24.0878]
[1723549382664,0.8233766,145.32,145.3,17.2057]
[1723549382860,0.8233766,145.32,145.3,24.0878]
[1723549384654,0.8233766,145.32,145.31,6.8818]
[1723549385161,0.8233766,145.32,145.31,13.1937]
[1723549385387,0.8233766,145.32,145.31,58.1937]
[1723549385552,0.8233766,145.32,145.31,58.6546771]
[1723549386163,0.8233766,145.46,145.38,0.12549]
[1723549386371,0.8233766,145.46,145.38,0.50196]
[1723549386662,6.8753,145.45,145.41,19.657]
[1723549387044,0.8233766,145.46,145.42,0.12549]
[1723549387242,0.8233766,145.46,145.42,52.00159]
[1723549387451,0.8233766,145.46,145.44,6.8752]
[1723549387742,0.8233766,145.46,145.45,51.8752]
[1723549387972,0.8233766,145.46,145.45,45.0]
[1723549388268,0.8233766,145.46,145.43,17.1892]
[1723549388467,0.8233766,145.46,145.43,24.0653]
[1723549388648,0.8233766,145.46,145.44,6.8755]
[1723549388857,0.8233766,145.46,145.45,51.8752]
[1723549389164,0.8233766,145.46,145.45,45.0]
[1723549389365,0.8233766,145.46,145.44,45.12549]
[1723549390271,0.8233766,145.46,145.44,52.00099]
[1723549392379,0.8233766,145.46,145.44,45.12549]
[1723549392561,13.6033766,145.46,145.37,6.2149]
[1723549392773,6.88,145.35,145.32,93.409017]
[1723549392966,12.78,145.4,145.32,106.189017]
[1723549393171,20.0,145.39,145.34,17.2005]
[1723549393678,26.8772,145.41,145.36,24.0774]
[1723549393871,103.5064766,145.46,145.38,17.1957]
[1723549393872,30.7905766,145.46,145.38,17.1957]
[1723549394046,6.8764,145.43,145.38,17.1957]
[1723549394247,20.0,145.42,145.38,24.074]
[1723549394850,13.6033766,145.46,145.41,0.12549]
[1723549395047,26.8755,145.45,145.41,45.8221259]
[1723549395446,20.0,145.45,145.41,45.8221259]
[1723549395648,6.8752,145.45,145.41,52.00259]
[1723549396457,7.6981766,145.46,145.42,0.12549]
[1723549396672,20.0,145.45,145.42,7.25297]
[1723549396981,7.6981766,145.46,145.43,45.0]
[1723549397869,7.6981766,145.46,145.43,0.12549]
[1723549398074,7.6981766,145.46,145.42,45.37647]
[1723549398075,6.8758,145.44,145.42,45.37647]
[1723549398259,6.8758,145.44,145.42,45.0]
[1723549398451,6.8753,145.45,145.41,45.12549]
[1723549398650,6.8753,145.45,145.41,52.00249]
[1723549398846,7.6981766,145.46,145.43,0.12549]
[1723549399150,7.6981766,145.46,145.43,45.25098]
[1723549399367,7.6980766,145.46,145.43,45.0]
[1723549399554,0.8233766,145.46,145.44,0.12549]
[1723549401269,0.8233766,145.46,145.44,17.31449]
[1723549401583,0.8233766,145.46,145.45,45.0]
[1723549401965,0.8233766,145.46,145.45,45.12549]